{"text_format":"1","workbook":"xlsx","n_sheets":2,"sheets":["Tabelle1","RechnungW"],"not_rendered":{"charts":0,"images":0,"macros":1,"external_links":1,"defined_names":0,"comments":0,"pivot_tables":0},"unopened":[],"bounds":{"document_bytes":16777216,"sheet_cells":100000,"rows_first":2000,"rows_last":500,"rows_between":2000,"halvings":0,"cell_chars":16384,"cell_head_chars":4096},"cells_cut":0,"cells_raw":0,"read":"whole","date_system":"1900"}

{"sheet":"Tabelle1","index":0,"n_rows":0,"n_cols":0,"rows_kept":0,"cut":false,"hidden":false,"merged":[]}

{"sheet":"RechnungW","index":1,"n_rows":373,"n_cols":25,"rows_kept":373,"cut":false,"hidden":false,"merged":[[378,4,379,4],[1,15,1,16],[2,15,2,16],[36,14,36,15],[187,4,188,4],[251,4,252,4],[314,4,315,4]]}
[null,null,null,"RechnungW Vers. 01.00",null,null,null,19,null,null,null,null,null,null,null,"EUR",{"$f":"YEAR(TODAY())","v":2025},{"$f":"MONTH(TODAY())","v":12},null,null,null,null,null,null,"Spalte 25"]
[null,null,null,null,null,null,null,null,null,null,null,null,null,null,null,"< Anzahl Kunden aus Kunden-Datenbank"]
[null,null,null,null,null,null,null,null,null,null,null,null,null,null,null,"< letzte Kunden-Nummer aus Kunden-Datenbank"]
[null,null,null,null,null,null,"<<< Seite 1",null,null,null,null,null,null,null,null,"< NEUE Kunden-Nummer wird erstellt, bei NEU-Anlage"]
[]
[]
[]
[]
[]
[]
[null,null,null,null,null,null,null,"",null,null,null,null,null,null,2500110,"< Kundennummer",null,""]
[null,{"$f":"IF($O$12=\"\",\"\",$O$12)","v":"Herrn"}," ",null,null,null,"< Zeile 12 Adressen Anfang",null,null,null,null,null,null,null,"Herrn","< Anrede oder Firmenname"]
[null,{"$f":"IF($O$12=\"\",\"\",IF(AND($O$13>0,$O$14>0),$O$13&\" \"&O13&\" \"&$O$14,IF(AND($O$13=\"\",O14=\"\"),$O$14,IF(AND($O$13=\"\",O13>0),O14&\" \"&$O$14))))","v":"Dr. Dr. Michael"},null,null,null,null,null,null,null,null,null,null,null,null,"Dr.","< Titel-       Prof./Dr. "]
[null,{"$f":"IF($O$15>0,+$O$15,IF($O$17>0,+$O$17,$O$18&\" \"&$O$19))","v":"Mustermann W"},null,null,null,null,null,null,null,null,null,null,null,null,"Michael","< VORNAME"]
[null,{"$f":"IF(AND($O$15>0,$O$17>0),$O$17,IF(AND($O$15>0,$O$17=\"\"),$O$18&\" \"&$O$19,IF(AND($O$15=\"\",$O$17>0),$O$18&\" \"&$O$19,IF(AND($O$15=\"\",$O$17=\"\"),$O$20&\" \"&$O$21))))","v":"Muster Str. 111"},null,null,null,null,null,null,null,null,null,null,null,null,"Mustermann W","< Kundenname oder 1. Firmenname ",null,null,null,null,null,"Name der Tabelle:","RechnungMG"]
[null,{"$f":"IF(AND($O$15>0,$O$17>0),$O$18&\" \"&$O$19,IF(AND($O$15>0,$O$17=\"\"),$O$20&\" \"&$O$21,IF(AND($O$15=\"\",$O$17>0),$O$20&\" \"&$O$21,IF(AND($O$15=\"\",$O$17=\"\"),\"\"))))","v":"50888 Köln"},null,null,null,null,null,null,null,null,null,null,null,null,null,"< 2. Firmenname",null,null,null,null,null,"Bestell-Nr.:",null,"< optional wird nicht benötigt"]
[null,{"$f":"IF(AND($O$15>0,$O$17>0),$O$20&\" \"&$O$21,IF(AND($O$15>0,$O$17=\"\"),\"\",IF(AND($O$15=\"\",$O$17>0),\"\",IF(AND($O$15=\"\",$O$17=\"\"),\"\"))))","v":""},null,null,null,null,null,null,null,null,null,null,null,null,null,"< Ansprechpartner / Hinweise / Postfach",null,null,null,null,null,"Lieferschein-Nr.:",null,"< optional wird nicht benötigt"]
[null,{"$f":"IF($O$22=\"\",\"\",$O$22)","v":"Deutschland"},null,null,null,null,"< Zeile 18 Land",null,null,null,null,null,null,null,"Muster Str.","< Straße"]
[" ",null,null,null,null,null,null,null,null,null,null,null,null,null,"111","< Straße Nummer",null,null,null,null,null,"Meine Firma:"]
[null,null,null,null,null,null,null,null,null,null,null,null,null,null,50888,"< Postleitzahl",null,null,null,null,null,"Name Lieferanten:","Willi Busche","< W20"]
[null,null,null,null,null,null,null,"Rechnungs-Nummer",null,null,null,null,null,null,"Köln","< Ort",null,null,null,null,null,"Name Ansprechperson:","Willi Busche GbR","< W21"]
[null,null,null,null,null,null,null,"prüfen:",null,null,null,null,null,null,"Deutschland","< LAND                     Zeile 18",null,null,null,null,null,"E-Mail Ansprechpartner:","wernerK@t-online.de","< W22"]
[null,{"$f":"TEXT(\"Rechnungs-Nr.   \",)&G23&\" - \"&TEXT(H23,\"0000\")","v":"Rechnungs-Nr.   25 - 2001"},null,{"$f":"\"Datum \"&TEXT(H29,\"TT.MM.JJJJ\")","v":"Datum 09.10.2025"},"Wb",null,25,2001,null,null,null,null,null,null,"2025-12-06","< Kunde erfasst: DATUM",null,null,null,null,null,"Straße:","Hagelberger Str. 6","< W23"]
[null,null,null,"Kunden-Nr.:",{"$f":"+O11","v":2500110},null,null,{"$f":"G23 & \"_\" & TEXT(H23,\"0000\")","v":"25_2001"},null,null,null,null,null,null,"www@t-online.de","< Mailadresse muss bei Firmen !",null,null,null,null,null,"Stadt:","Köln","< W24"]
[null,"Lieferungen und Leistungen","Menge / Std.","Einzelpreis","Netto-Preis",null,null,null,null,null,null,null,null,null,"Validierung: ","https://erechnungsvalidator.service-bw.de/",null,null,null,null,null,"PLZ:",50678,"< W25"]
[null,null,null,null,{"$f":"IF(D26=\"\",\"\",+C26*D26)","v":""},null,null,null,null,null,null,null,null,null,"Visualisierung:","C:\\Program Files (x86)\\Ultramarinviewer\\",null,null,null,null,null,"Land:","Deutschland","< W26"]
[null,"Betr.: Objekt Neubaugebiet Stuttgart1",null,null,"",null,"< anfang text","Heute ist:",null,null,null,null,null,null,null,null,null,null,null,null,null,"Ust-ID:","DE225291931","< W27"]
[null,null,null,null,"",null,null,{"$f":"TODAY()","v":"2025-12-06"},null,null,null,null,null,null,null,null,null,null,null,null,null,"Telefon:",221745623,"< W28"]
[null,null,null,null,"",null,"Rg.-Datum >","2025-10-09",null,null,null,null,null,null,"Straße und Nr.:",{"$f":"+O18 &\" \"& O19","v":"Muster Str. 111"},null,null,null,null,null,"IBAN:","DE22310500000000081452","< W29"]
[null,"Wir lieferten und montierten im November2025",null,null,"",null,null,null,null,null,null,null,null,null,"Name der aktuellen Tabelle:",{"$f":"MID(CELL(\"dateiname\",A1),FIND(\"]\",CELL(\"dateiname\",A1))+1,255)","v":"RechnungW"},null,null,null,null,null,"Name Konto:","Werner Busch","< W30"]
[null,null,null,null,"",null,null,null,null,null,null,null,null,null,"Bearbeitung durch Firma:",{"$f":"MID(P30,9,11)","v":"W"},null,null,null,null,null,"BIC:","KLSTSDE33","< W31"]
[null,null,null,null,"",null,null,null,null,null,null,null,null,null,"Firmen-Nachname zum Speichern:",{"$f":"LEFT(+O14,50)","v":"Michael"}]
[null,"Bauelemente Fenster",3,1600,4800,1,null,null,null,null,null,null,null,null,"Version der Rechnungsvorlage:",{"$f":"+D1","v":"RechnungW Vers. 01.00"},null,null,null,null,null,"Kundendaten:"]
[null,"Abdeckungen",3,1200,3600,null,null,null,null,null,null,null,null,null,"Rechnungskorrektur wird automatisch hier eingesetzt:",null,null,null,null,null,null,"Rechnungsnummer:","H24"]
[null,null,null,null,"",null,null,null,null,null,null,null,null,null,"letzte Aktualisierung:","2025-08-31",null,null,null,null,null,"Rechnungsdatum:","H29"]
[null,"Kosten für Fahrten",1.75,500,875,null,null,null,null,null,null,null,null,null,null,null,null,null,null,null,null,"Kunden-Nr.:","O11"]
[null,null,null,null,"",null,null,null,null,null,null,null,null,null,"Nur zur Info, kontrolle",null,null,null,null,null,null,"Kundenname:","O15"]
[null,null,null,null,"",null,null,null,null,null,null,null,null,null,"ist Endpreis Netto:",{"$f":"+E371","v":10179},null,null,null,null,null,"Straße:","O18"]
[null,null,null,null,"",null,null,null,null,null,null,null,null,null,"ist MwSt:",{"$f":"+E372","v":1934.01},null,null,null,null,null,"PLZ:","O20"]
[null,null,null,null,"",null,null,null,null,null,null,null,null,null,"ist Endpreis Brutto:",{"$f":"+E373","v":12113.01},null,null,null,null,null,"Stadt:","O21"]
[null,"abzüglich 2 % Nachlass aus 4.800,00",1,-96,-96,null,null,null,null,null,null,null,null,null,null,null,null,null,null,null,null,"Name Ansprechperson:","O17"]
[null,"Nachlass 96,00",null,null,"",null,null,null,null,null,null,null,null,null,null,null,null,null,null,null,null,"E-Mail-Ansprechpartner:","O24"]
[null,null,null,null,"",null,null,null,null,null,null,null,null,null,null,null,null,null,null,null,null,"Land:","O22"]
[null,null,null,null,"",null,null,null,null,null,null,null,null,null,null,null,null,null,null,null,null,"Ust-ID:","optional"]
[null,null,null,null,"",null,null,null,null,null,null,null,null,null,null,null,null,null,null,null,null,"Zahlungsziel:","Zahlbar innerhalb 14 Tagen"]
[null,null,null,null,""]
[null,null,null,null,"",null,null,null,null,null,null,null,null,null,null,null,null,null,null,null,null,"Steuer-Satz","H1","< veränderbar  z.b. 5 für Belgien"]
[null,null,null,null,"",null,null,null,null,null,null,null,null,null,null,null,null,null,null,null,null,"Währung:","P1"]
[null,null,null,null,"",null,null,null,null,null,null,null,null,null,null,null,null,null,null,null,null,"Netto-Gesamt-Betrag:","P38"]
[null,null,null,null,"",null,null,null,null,null,null,null,null,null,null,null,null,null,null,null,null,"MwSt-Gesamt-Betrag:","P39"]
[null,null,null,"Zwischensumme Seite 1 von 2 Seiten:",{"$f":"SUM($E$26:$E$50)","v":9179},null,"<<< Seite 1",null,null,null,null,null,null,null,null,null,null,null,null,null,null,"Brutto-Gesamt-Betrag:","P40"]
[]
[null,null,null,null,null,null,null,null,null,null,null,null,null,null,null,null,null,null,null,null,"Lieferungen und Leistungen","Menge z.b. 2 / Std. z.b.= 1,25","Einzelpreis Netto in Spalte D","NETTO =Einzelpreis x Menge/ Std."]
[null,null,null,null,null,null,null,null,null,null,null,null,null,null,null,null,null,null,null,null,"Texte in Spalte B","menge/Std  in Spalte C","Einzelpreis Netto in Spalte D","GesamtNetto in Spalte E"]
[]
[null,null,null,null,null,null,null,null,null,null,null,null,null,null,null,null,null,null,null,null,"BereichZeilen = Array( _","BereichZeilen = Array( _","BereichZeilen = Array( _","BereichZeilen = Array( _"]
[null,null,null,null,null,null,null,null,null,null,null,null,null,null,null,null,null,null,null,null,"        Array(27, 50), _","        Array(27, 50), _","        Array(27, 50), _","        Array(27, 50), _"]
[null,null,null,null,null,null,null,null,null,null,null,null,null,null,null,null,null,null,null,null,"        Array(92, 115), _","        Array(92, 115), _","        Array(92, 115), _","        Array(92, 115), _"]
[null,null,null,null,null,null,null,null,null,null,null,null,null,null,null,null,null,null,null,null,"        Array(156, 179), _","        Array(156, 179), _","        Array(156, 179), _","        Array(156, 179), _"]
[null,null,null,null,null,null,null,null,null,null,null,null,null,null,null,null,null,null,null,null,"        Array(220, 243), _","        Array(220, 243), _","        Array(220, 243), _","        Array(220, 243), _"]
[null,null,null,null,null,null,null,null,null,null,null,null,null,null,null,null,null,null,null,null,"        Array(283, 306), _","        Array(283, 306), _","        Array(283, 306), _","        Array(283, 306), _"]
[null,null,null,null,null,null,null,null,null,null,null,null,null,null,null,null,null,null,null,null,"        Array(347, 370))","        Array(347, 370))","        Array(347, 370))","        Array(347, 370))"]
[]
[]
[]
[]
[]
[]
[]
[]
[]
[]
[]
[]
[null,""]
[null,{"$f":"IF(+$B$12=\"\",\"\",$B$12)","v":"Herrn"}]
[null,{"$f":"IF(+$B$13=\"\",\"\",$B$13)","v":"Dr. Dr. Michael"}]
[null,{"$f":"IF(+$B$14=\"\",\"\",$B$14)","v":"Mustermann W"}]
[null,{"$f":"IF(+$B$15=\"\",\"\",$B$15)","v":"Muster Str. 111"}]
[null,{"$f":"IF(+$B$16=\"\",\"\",$B$16)","v":"50888 Köln"}]
[null,{"$f":"IF(+$B$18=\"\",\"\",$B$18)","v":"Deutschland"}]
[]
[]
[null,""]
[null,""]
[null,{"$f":"IF(+$B$21=\"\",\"\",$B$21)","v":""}]
[null,{"$f":"IF(+$B$22=\"\",\"\",$B$22)","v":""}]
[null,{"$f":"IF(+$B$23=\"\",\"\",$B$23)","v":"Rechnungs-Nr.   25 - 2001"},null,{"$f":"IF(+$D$23=\"\",\"\",$D$23)","v":"Datum 09.10.2025"},{"$f":"IF(+$E$23=\"\",\"\",$E$23)","v":"Wb"}]
[null,null,null,{"$f":"+$D$24","v":"Kunden-Nr.:"},{"$f":"+$E$24","v":2500110}]
[null,"Lieferungen und Leistungen","Menge / Std.","Einzelpreis","Netto-Preis"]
[null,"Übertrag Seite 1 von 2 Seiten:",null,null,{"$f":"+E51","v":9179},null,"<<< Seite 2"]
[null,null,null,null,{"$f":"IF(D92=\"\",\"\",+C92*D92)","v":""},null,"<<< anfang text"]
[null,null,null,null,""]
[null,null,null,null,""]
[null,"transportkosten",1,1000,1000]
[null,null,null,null,""]
[null,null,null,null,""]
[null,null,null,null,""]
[null,null,null,null,""]
[null,null,null,null,""]
[null,null,null,null,""]
[null,null,null,null,""]
[null,null,null,null,""]
[null,null,null,null,""]
[null,null,null,null,""]
[null,null,null,null,""]
[null,null,null,null,""]
[null,null,null,null,""]
[null,null,null,null,""]
[null,null,null,null,""]
[null,null,null,null,""]
[null,null,null,null,""]
[null,null,null,null,""]
[null,null,null,null,""]
[null,null,null,null,""]
[null,null,null,"Netto",{"$f":"SUM(E91:E115)","v":10179}]
[null,null,null,{"$f":"+$H$1","v":19},{"$f":"SUM(E116)*$H$1/100","v":1934.01}]
[null,null,null,"Brutto",{"$f":"SUM(E116:E117)","v":12113.01},null,"<<< Seite 2"]
[]
[]
[]
[]
[]
[]
[]
[]
[]
[]
[]
[]
[]
[]
[]
[]
[]
[]
[]
[]
[]
[null,{"$f":"IF(+$B$12=\"\",\"\",$B$12)","v":"Herrn"}]
[null,{"$f":"IF(+$B$13=\"\",\"\",$B$13)","v":"Dr. Dr. Michael"}]
[null,{"$f":"IF(+$B$14=\"\",\"\",$B$14)","v":"Mustermann W"}]
[null,{"$f":"IF(+$B$15=\"\",\"\",$B$15)","v":"Muster Str. 111"}]
[null,{"$f":"IF(+$B$16=\"\",\"\",$B$16)","v":"50888 Köln"}]
[null,{"$f":"IF(+$B$18=\"\",\"\",$B$18)","v":"Deutschland"}]
[]
[]
[null,""]
[null,""]
[null,{"$f":"IF(+$B$21=\"\",\"\",$B$21)","v":""}]
[null,{"$f":"IF(+$B$22=\"\",\"\",$B$22)","v":""}]
[null,{"$f":"IF(+$B$23=\"\",\"\",$B$23)","v":"Rechnungs-Nr.   25 - 2001"},null,{"$f":"IF(+$D$23=\"\",\"\",$D$23)","v":"Datum 09.10.2025"},{"$f":"IF(+$E$23=\"\",\"\",$E$23)","v":"Wb"}]
[null,null,null,{"$f":"+$D$24","v":"Kunden-Nr.:"},{"$f":"+$E$24","v":2500110}]
[null,"Lieferungen und Leistungen","Menge / Std.","Einzelpreis","Netto-Preis"]
[null,null,null,null,{"$f":"+E116","v":10179},null,"<<< Seite 3"]
[null,null,null,null,{"$f":"IF(D156=\"\",\"\",+C156*D156)","v":""},null,"<<< anfang Text"]
[null,null,null,null,""]
[null,null,null,null,""]
[null,null,null,null,""]
[null,null,null,null,""]
[null,null,null,null,""]
[null,null,null,null,""]
[null,null,null,null,""]
[null,null,null,null,""]
[null,null,null,null,""]
[null,null,null,null,""]
[null,null,null,null,""]
[null,null,null,null,""]
[null,null,null,null,""]
[null,null,null,null,""]
[null,null,null,null,""]
[null,null,null,null,""]
[null,null,null,null,""]
[null,null,null,null,""]
[null,null,null,null,""]
[null,null,null,null,""]
[null,null,null,null,""]
[null,null,null,null,""]
[null,null,null,null,""]
[null,null,null,"Netto",{"$f":"SUM($E$155:$E$179)","v":10179},null,"<<< Seite 3"]
[null,null,null,{"$f":"+$H$1","v":19},{"$f":"SUM(E180)*$H$1/100","v":1934.01}]
[null,null,null,"Brutto",{"$f":"SUM(E180:E181)","v":12113.01}]
[]
[]
[]
[]
[]
[]
[]
[]
[]
[]
[]
[]
[]
[]
[]
[]
[]
[]
[]
[]
[null,""]
[null,{"$f":"IF(+$B$12=\"\",\"\",$B$12)","v":"Herrn"}]
[null,{"$f":"IF(+$B$13=\"\",\"\",$B$13)","v":"Dr. Dr. Michael"}]
[null,{"$f":"IF(+$B$14=\"\",\"\",$B$14)","v":"Mustermann W"}]
[null,{"$f":"IF(+$B$15=\"\",\"\",$B$15)","v":"Muster Str. 111"}]
[null,{"$f":"IF(+$B$16=\"\",\"\",$B$16)","v":"50888 Köln"}]
[null,{"$f":"IF(+$B$18=\"\",\"\",$B$18)","v":"Deutschland"}]
[]
[]
[null,""]
[null,""]
[null,{"$f":"IF(+$B$21=\"\",\"\",$B$21)","v":""}]
[null,{"$f":"IF(+$B$22=\"\",\"\",$B$22)","v":""}]
[null,{"$f":"IF(+$B$23=\"\",\"\",$B$23)","v":"Rechnungs-Nr.   25 - 2001"},null,{"$f":"IF(+$D$23=\"\",\"\",$D$23)","v":"Datum 09.10.2025"},{"$f":"IF(+$E$23=\"\",\"\",$E$23)","v":"Wb"}]
[null,null,null,{"$f":"+$D$24","v":"Kunden-Nr.:"},{"$f":"+$E$24","v":2500110}]
[null,"Lieferungen und Leistungen","Menge / Std.","Einzelpreis","Netto-Preis"]
[null,null,null,null,{"$f":"+E180","v":10179},null,"<<< Seite 4"]
[null,null,null,null,null,null,"<<< anfang Text"]
[]
[]
[]
[]
[]
[]
[]
[]
[]
[]
[]
[]
[]
[]
[]
[]
[]
[]
[]
[]
[]
[]
[]
[null,null,null,"Netto",{"$f":"SUM($E$219:$E$243)","v":10179},null,"<<< Seite 4"]
[null,null,null,{"$f":"+$H$1","v":19},{"$f":"SUM(E244)*$H$1/100","v":1934.01}]
[null,null,null,"Brutto",{"$f":"SUM(E244:E245)","v":12113.01}]
[]
[]
[]
[]
[]
[]
[]
[]
[]
[]
[]
[]
[]
[]
[]
[]
[]
[]
[]
[]
[]
[null,{"$f":"IF(+$B$12=\"\",\"\",$B$12)","v":"Herrn"}]
[null,{"$f":"IF(+$B$13=\"\",\"\",$B$13)","v":"Dr. Dr. Michael"}]
[null,{"$f":"IF(+$B$14=\"\",\"\",$B$14)","v":"Mustermann W"}]
[null,{"$f":"IF(+$B$15=\"\",\"\",$B$15)","v":"Muster Str. 111"}]
[null,{"$f":"IF(+$B$16=\"\",\"\",$B$16)","v":"50888 Köln"}]
[null,{"$f":"IF(+$B$18=\"\",\"\",$B$18)","v":"Deutschland"}]
[]
[]
[null,""]
[null,{"$f":"IF(+$B$21=\"\",\"\",$B$21)","v":""}]
[null,{"$f":"IF(+$B$22=\"\",\"\",$B$22)","v":""}]
[null,{"$f":"IF(+$B$23=\"\",\"\",$B$23)","v":"Rechnungs-Nr.   25 - 2001"},null,{"$f":"IF(+$D$23=\"\",\"\",$D$23)","v":"Datum 09.10.2025"},{"$f":"IF(+$E$23=\"\",\"\",$E$23)","v":"Wb"}]
[null,null,null,{"$f":"+$D$24","v":"Kunden-Nr.:"},{"$f":"+$E$24","v":2500110}]
[null,"Lieferungen und Leistungen","Menge / Std.","Einzelpreis","Netto-Preis"]
[null,null,null,null,{"$f":"+E244","v":10179},null,"<<< Seite 5"]
[null,null,null,null,null,null,"<<< anfang Text"]
[]
[]
[]
[]
[]
[]
[]
[]
[]
[]
[]
[]
[]
[]
[]
[]
[]
[]
[]
[]
[]
[]
[]
[null,null,null,"Netto",{"$f":"SUM($E$282:$E$306)","v":10179}]
[null,null,null,{"$f":"+$H$1","v":19},{"$f":"SUM(E307)*$H$1/100","v":1934.01}]
[null,null,null,"Brutto",{"$f":"SUM(E307:E308)","v":12113.01},null,"<<< Seite 5"]
[]
[]
[]
[]
[]
[]
[]
[]
[]
[]
[]
[]
[]
[]
[]
[]
[]
[]
[]
[]
[null,""]
[null,{"$f":"IF(+$B$12=\"\",\"\",$B$12)","v":"Herrn"}]
[null,{"$f":"IF(+$B$13=\"\",\"\",$B$13)","v":"Dr. Dr. Michael"}]
[null,{"$f":"IF(+$B$14=\"\",\"\",$B$14)","v":"Mustermann W"}]
[null,{"$f":"IF(+$B$15=\"\",\"\",$B$15)","v":"Muster Str. 111"}]
[null,{"$f":"IF(+$B$16=\"\",\"\",$B$16)","v":"50888 Köln"}]
[null,{"$f":"IF(+$B$18=\"\",\"\",$B$18)","v":"Deutschland"}]
[]
[]
[null,""]
[null,""]
[null,{"$f":"IF(+$B$21=\"\",\"\",$B$21)","v":""}]
[null,{"$f":"IF(+$B$22=\"\",\"\",$B$22)","v":""}]
[null,{"$f":"IF(+$B$23=\"\",\"\",$B$23)","v":"Rechnungs-Nr.   25 - 2001"},null,{"$f":"IF(+$D$23=\"\",\"\",$D$23)","v":"Datum 09.10.2025"},{"$f":"IF(+$E$23=\"\",\"\",$E$23)","v":"Wb"}]
[null,null,null,{"$f":"+$D$24","v":"Kunden-Nr.:"},{"$f":"+$E$24","v":2500110}]
[null,"Lieferungen und Leistungen","Menge / Std.","Einzelpreis","Netto-Preis"]
[null,null,null,null,{"$f":"+E307","v":10179},null,"<<< Seite 6"]
[null,null,null,null,null,null,"<<< anfang Text"]
[]
[]
[]
[]
[]
[]
[]
[]
[]
[]
[]
[]
[]
[]
[]
[]
[]
[]
[]
[]
[]
[]
[]
[null,null,null,"Netto",{"$f":"SUM($E$346:$E$370)","v":10179}]
[null,null,null,{"$f":"+$H$1","v":19},{"$f":"SUM(E371)*$H$1/100","v":1934.01}]
[null,null,null,"Brutto",{"$f":"SUM(E371:E372)","v":12113.01},null,"<<< Seite 6"]